{"text_format":"1","workbook":"xlsx","n_sheets":1,"sheets":["Лист1"],"not_rendered":{"charts":0,"images":0,"macros":1,"external_links":0,"defined_names":0,"comments":0,"pivot_tables":0},"unopened":[],"bounds":{"document_bytes":16777216,"sheet_cells":100000,"rows_first":2000,"rows_last":500,"rows_between":2000,"halvings":0,"cell_chars":16384,"cell_head_chars":4096},"cells_cut":0,"cells_raw":0,"read":"whole","date_system":"1900"}

{"sheet":"Лист1","index":0,"n_rows":21,"n_cols":11,"rows_kept":21,"cut":false,"hidden":false,"merged":[[5,7,5,9],[3,2,3,5],[7,10,18,10]]}
[]
[]
[]
[null,null,"Количество оросителей  на участке ",null,null,null,null,"1-5, 7-10, 25","1,5,10,12","6-7, 11, 13, 18-25"]
[]
[null,null,null,null,null,null,null,"Сортировка оросителей на участке"]
[]
[null,null,null,null,null,null,null,{"$f":"BlackJek(H$4,ROW(A1))","v":1},{"$f":"BlackJek(I$4,ROW(B1))","v":1},6,"Эта часть должна заполнятся автоматически после ввода значений (Ячейки \"Количество оросителей на участке \") "]
[null,null,null,null,null,null,null,{"$f":"BlackJek(H$4,ROW(A2))","v":2},5,7]
[null,null,null,null,null,null,null,3,10,11]
[null,null,null,null,null,null,null,4,12,13]
[null,null,null,null,null,null,null,5,"",18]
[null,null,null,null,null,null,null,7,"",19]
[null,null,null,null,null,null,null,8,"",20]
[null,null,null,null,null,null,null,9,"",21]
[null,null,null,null,null,null,null,10,"",22]
[null,null,null,null,null,null,null,25,"",23]
[null,null,null,null,null,null,null,"","",24]
[null,null,null,null,null,null,null,"","",25]
[null,null,null,null,null,null,null,{"$f":"BlackJek(H$4,ROW(A13))","v":""},{"$f":"BlackJek(I$4,ROW(B13))","v":""},{"$f":"BlackJek(J$4,ROW(C13))","v":""}]
[null,null,null,{"$f":"BlackJek(H$4,ROW(A14))","v":""},{"$f":"BlackJek(I$4,ROW(B14))","v":""},{"$f":"BlackJek(J$4,ROW(C14))","v":""}]